[Event "*** Titled Tuesday 3|2 Blitz"]
[Site "Chess.com"]
[Date "2016.03.01"]
[Round "5"]
[White "Tesla17"]
[Black "Gevorg_Harutjunyan"]
[Result "1-0"]
[WhiteElo "2282"]
[BlackElo "2583"]
[TimeControl "180+2"]
[EndTime "12:35:44 PST"]
[Termination "Tesla17 won by checkmate"]

1. d4 {[%clk 0:03:01.9]} 1... Nf6 {[%clk 0:02:59.2]} 2. c4 {[%clk 0:03:02.9]}
2... g6 {[%clk 0:03:00.8]} 3. Nc3 {[%clk 0:03:03.8]} 3... Bg7 {[%clk 0:03:02.4]}
4. e4 {[%clk 0:03:05]} 4... d6 {[%clk 0:03:04]} 5. Be2 {[%clk 0:03:06.3]} 5...
O-O {[%clk 0:03:05.5]} 6. Nf3 {[%clk 0:03:07.8]} 6... e5 {[%clk 0:03:07.1]} 7.
O-O {[%clk 0:03:09.3]} 7... exd4 {[%clk 0:03:08.7]} 8. Nxd4 {[%clk 0:03:10.2]}
8... Re8 {[%clk 0:03:10.2]} 9. f3 {[%clk 0:03:11.1]} 9... Nc6 {[%clk 0:03:11.8]}
10. Be3 {[%clk 0:03:11.7]} 10... Nh5 {[%clk 0:03:13.4]} 11. Qd2 {[%clk
0:03:12.9]} 11... Nf4 {[%clk 0:03:14.1]} 12. Rfd1 {[%clk 0:03:14]} 12... Nxd4
{[%clk 0:03:14]} 13. Bxd4 {[%clk 0:03:14.5]} 13... Bxd4+ {[%clk 0:03:15.1]} 14.
Qxd4 {[%clk 0:03:15.4]} 14... Nxe2+ {[%clk 0:03:16.4]} 15. Nxe2 {[%clk
0:03:16.2]} 15... b6 {[%clk 0:03:17.9]} 16. Nc3 {[%clk 0:03:14.2]} 16... Bb7
{[%clk 0:03:17.2]} 17. Nd5 {[%clk 0:03:14.8]} 17... Bxd5 {[%clk 0:03:17.8]} 18.
cxd5 {[%clk 0:03:14.6]} 18... Qg5 {[%clk 0:03:17.4]} 19. Rac1 {[%clk 0:03:12.3]}
19... Re7 {[%clk 0:03:18]} 20. Qd2 {[%clk 0:03:10.5]} 20... Qh5 {[%clk
0:03:12.5]} 21. g4 {[%clk 0:02:36.7]} 21... Qe5 {[%clk 0:03:07.8]} 22. Rc4
{[%clk 0:02:17.1]} 22... Rae8 {[%clk 0:03:02.9]} 23. Rdc1 {[%clk 0:02:13.1]}
23... h5 {[%clk 0:02:44.5]} 24. g5 {[%clk 0:01:53.9]} 24... f5 {[%clk
0:02:42.7]} 25. gxf6 {[%clk 0:01:42.4]} 25... Qxf6 {[%clk 0:02:43.4]} 26. Kg2
{[%clk 0:01:36.3]} 26... Rf8 {[%clk 0:02:35]} 27. Rf1 {[%clk 0:01:26.9]} 27...
g5 {[%clk 0:02:23.9]} 28. Qc3 {[%clk 0:01:21.6]} 28... Qf7 {[%clk 0:02:24.5]}
29. Qe3 {[%clk 0:01:12.7]} 29... Qg7 {[%clk 0:02:23.2]} 30. Qc3 {[%clk
0:01:12.3]} 30... Rf6 {[%clk 0:02:19.9]} 31. Qd4 {[%clk 0:00:56.6]} 31... Kh7
{[%clk 0:02:12.7]} 32. Rc2 {[%clk 0:00:53.4]} 32... Qg6 {[%clk 0:02:02.6]} 33.
Rcf2 {[%clk 0:00:43.6]} 33... Rf4 {[%clk 0:01:58.7]} 34. Qd3 {[%clk 0:00:38.1]}
34... Ref7 {[%clk 0:01:53.5]} 35. Kg1 {[%clk 0:00:33.1]} 35... g4 {[%clk
0:01:53.6]} 36. Kh1 {[%clk 0:00:13.4]} 36... h4 {[%clk 0:01:42.8]} 37. Qe3
{[%clk 0:00:04.6]} 37... Qf6 {[%clk 0:01:21.4]} 38. Kg1 {[%clk 0:00:03.1]} 38...
g3 {[%clk 0:01:17.2]} 39. hxg3 {[%clk 0:00:03.7]} 39... hxg3 {[%clk 0:01:18.6]}
40. Rg2 {[%clk 0:00:05.1]} 40... Qh4 {[%clk 0:01:13]} 41. e5 {[%clk 0:00:02.9]}
41... dxe5 {[%clk 0:01:04.3]} 42. Qxe5 {[%clk 0:00:04.8]} 42... Rxf3 {[%clk
0:00:45.3]} 43. Rxf3 {[%clk 0:00:05.2]} 43... Rxf3 {[%clk 0:00:47.2]} 44. Qxc7+
{[%clk 0:00:06.7]} 44... Kh6 {[%clk 0:00:48.5]} 45. Qd6+ {[%clk 0:00:07.3]}
45... Kg7 {[%clk 0:00:45.1]} 46. Qe5+ {[%clk 0:00:07.7]} 46... Kh7 {[%clk
0:00:41]} 47. Qc7+ {[%clk 0:00:07.9]} 47... Kg8 {[%clk 0:00:37.2]} 48. Qc8+
{[%clk 0:00:06.9]} 48... Rf8 {[%clk 0:00:33.7]} 49. Qe6+ {[%clk 0:00:07.6]}
49... Rf7 {[%clk 0:00:32.2]} 50. Qe8+ {[%clk 0:00:05.8]} 50... Kg7 {[%clk
0:00:30.2]} 51. Qe5+ {[%clk 0:00:06.4]} 51... Kf8 {[%clk 0:00:30.5]} 52. Rxg3
{[%clk 0:00:07.4]} 52... Qh7 {[%clk 0:00:17.2]} 53. Qb8+ {[%clk 0:00:04]} 53...
Ke7 {[%clk 0:00:17]} 54. Qc7+ {[%clk 0:00:04.8]} 54... Ke8 {[%clk 0:00:15.3]}
55. Qc8+ {[%clk 0:00:04.6]} 55... Ke7 {[%clk 0:00:16.7]} 56. Qc7+ {[%clk
0:00:05.6]} 56... Ke8 {[%clk 0:00:16.5]} 57. Qc8+ {[%clk 0:00:07]} 57... Ke7
{[%clk 0:00:17.9]} 58. Qe6+ {[%clk 0:00:08.3]} 58... Kd8 {[%clk 0:00:16.2]} 59.
Qd6+ {[%clk 0:00:09.6]} 59... Rd7 {[%clk 0:00:16.2]} 60. Qf8+ {[%clk 0:00:07.7]}
60... Kc7 {[%clk 0:00:17.7]} 61. Rc3+ {[%clk 0:00:09]} 61... Kb7 {[%clk
0:00:19.3]} 62. Qc8# {[%clk 0:00:10.1]} 1-0

[Event "*** Titled Tuesday 3|2 Blitz"]
[Site "Chess.com"]
[Date "2016.03.01"]
[Round "6"]
[White "chessbia"]
[Black "Grootneus"]
[Result "0-1"]
[WhiteElo "1995"]
[BlackElo "2030"]
[TimeControl "180+2"]
[EndTime "12:38:20 PST"]
[Termination "Grootneus won by resignation"]

1. d4 {[%clk 0:02:59]} 1... Nf6 {[%clk 0:02:58.8]} 2. c4 {[%clk 0:02:59.5]} 2...
c5 {[%clk 0:02:59.6]} 3. d5 {[%clk 0:03:00.6]} 3... b5 {[%clk 0:03:00.2]} 4.
cxb5 {[%clk 0:03:00.3]} 4... a6 {[%clk 0:03:01.7]} 5. bxa6 {[%clk 0:03:01.1]}
5... g6 {[%clk 0:03:03.2]} 6. Nc3 {[%clk 0:03:01.9]} 6... Bxa6 {[%clk
0:03:04.6]} 7. e4 {[%clk 0:03:03]} 7... Bxf1 {[%clk 0:03:06.5]} 8. Kxf1 {[%clk
0:03:04.2]} 8... d6 {[%clk 0:03:07.5]} 9. Nf3 {[%clk 0:03:05.8]} 9... Bg7 {[%clk
0:03:09]} 10. g3 {[%clk 0:03:07.3]} 10... O-O {[%clk 0:03:10.5]} 11. Kg2 {[%clk
0:03:08.8]} 11... Nbd7 {[%clk 0:03:12.1]} 12. a4 {[%clk 0:03:10.2]} 12... Qb6
{[%clk 0:03:11.3]} 13. Qb3 {[%clk 0:03:08.7]} 13... Qxb3 {[%clk 0:03:11.4]} 0-1

[Event "*** Titled Tuesday 3|2 Blitz"]
[Site "Chess.com"]
[Date "2016.03.01"]
[Round "6"]
[White "petrpalachev"]
[Black "Cecile_Haussernot"]
[Result "1-0"]
[WhiteElo "2272"]
[BlackElo "2156"]
[TimeControl "180+2"]
[EndTime "12:42:02 PST"]
[Termination "petrpalachev won by resignation"]

1. d4 {[%clk 0:02:59.6]} 1... Nf6 {[%clk 0:03:00.1]} 2. c4 {[%clk 0:03:01.2]}
2... e6 {[%clk 0:02:59]} 3. Nc3 {[%clk 0:03:02.3]} 3... Bb4 {[%clk 0:03:00.5]}
4. e3 {[%clk 0:03:03.5]} 4... O-O {[%clk 0:03:01.6]} 5. Bd3 {[%clk 0:03:04.3]}
5... d5 {[%clk 0:03:03]} 6. Nf3 {[%clk 0:03:05]} 6... dxc4 {[%clk 0:02:59.9]} 7.
Bxc4 {[%clk 0:03:06.9]} 7... c5 {[%clk 0:02:59.6]} 8. O-O {[%clk 0:03:07.1]}
8... Bd7 {[%clk 0:03:01.2]} 9. Ne5 {[%clk 0:03:04]} 9... Qc7 {[%clk 0:02:58.3]}
10. Qe2 {[%clk 0:02:43.4]} 10... a6 {[%clk 0:02:51.9]} 11. Nxd7 {[%clk
0:02:39.2]} 11... Nbxd7 {[%clk 0:02:44.9]} 12. a3 {[%clk 0:02:40.6]} 12... Ba5
{[%clk 0:02:42.3]} 13. Bd2 {[%clk 0:02:19.3]} 13... b5 {[%clk 0:02:42.3]} 14.
Bd3 {[%clk 0:02:16]} 14... e5 {[%clk 0:02:38.6]} 15. dxc5 {[%clk 0:02:07.7]}
15... Bxc3 {[%clk 0:02:31.3]} 16. Bxc3 {[%clk 0:02:06.8]} 16... Nxc5 {[%clk
0:02:32.7]} 17. Bc2 {[%clk 0:02:04.9]} 17... Rac8 {[%clk 0:02:23.8]} 18. Rac1
{[%clk 0:02:02.6]} 18... e4 {[%clk 0:02:20.8]} 19. Bxf6 {[%clk 0:02:01.8]} 19...
gxf6 {[%clk 0:02:21.5]} 20. Bxe4 {[%clk 0:02:02.8]} 20... Qe5 {[%clk 0:02:18.3]}
21. Qg4+ {[%clk 0:01:50.5]} 21... Kh8 {[%clk 0:02:17.9]} 22. Bf5 {[%clk
0:01:51.8]} 22... Rg8 {[%clk 0:02:08.5]} 23. Qh3 {[%clk 0:01:49.7]} 23... Rxg2+
{[%clk 0:01:52.3]} 24. Kxg2 {[%clk 0:01:48.1]} 24... Rg8+ {[%clk 0:01:52.6]} 25.
Kh1 {[%clk 0:01:46.9]} 1-0

[Event "*** Titled Tuesday 3|2 Blitz"]
[Site "Chess.com"]
[Date "2016.03.01"]
[Round "6"]
[White "JustaTrickstar"]
[Black "ftorodent"]
[Result "1-0"]
[WhiteElo "2459"]
[BlackElo "2309"]
[TimeControl "180+2"]
[EndTime "12:42:10 PST"]
[Termination "JustaTrickstar won by resignation"]

1. d4 {[%clk 0:03:01.9]} 1... f5 {[%clk 0:02:58.1]} 2. e4 {[%clk 0:03:01.3]}
2... fxe4 {[%clk 0:02:58.2]} 3. Nc3 {[%clk 0:03:02.5]} 3... Nf6 {[%clk
0:02:58.7]} 4. Bg5 {[%clk 0:03:02.7]} 4... g6 {[%clk 0:02:59.8]} 5. h4 {[%clk
0:02:47.7]} 5... d5 {[%clk 0:02:41.5]} 6. h5 {[%clk 0:02:16.4]} 6... Bg4 {[%clk
0:02:14.9]} 7. Be2 {[%clk 0:02:15]} 7... Bxe2 {[%clk 0:01:52.4]} 8. Ngxe2 {[%clk
0:02:10.1]} 8... Nxh5 {[%clk 0:01:49.2]} 9. Rxh5 {[%clk 0:02:09.8]} 9... gxh5
{[%clk 0:01:49.6]} 10. Nf4 {[%clk 0:02:11.4]} 10... Qd6 {[%clk 0:01:23]} 11.
Qxh5+ {[%clk 0:02:01.1]} 11... Kd8 {[%clk 0:01:23.9]} 12. Nfxd5 {[%clk
0:01:34.6]} 12... c6 {[%clk 0:01:25]} 13. Bf4 {[%clk 0:01:31.3]} 13... Qg6
{[%clk 0:01:25.1]} 14. Qe5 {[%clk 0:01:26.5]} 14... Bg7 {[%clk 0:01:15]} 15.
Qxe7+ {[%clk 0:01:26]} 1-0

[Event "*** Titled Tuesday 3|2 Blitz"]
[Site "Chess.com"]
[Date "2016.03.01"]
[Round "6"]
[White "ChessTrener"]
[Black "Dlugy"]
[Result "1-0"]
[WhiteElo "2593"]
[BlackElo "2595"]
[TimeControl "180+2"]
[EndTime "12:42:54 PST"]
[Termination "ChessTrener won by resignation"]

1. d4 {[%clk 0:03:01.9]} 1... Nf6 {[%clk 0:03:00.3]} 2. Nf3 {[%clk 0:03:02.8]}
2... g6 {[%clk 0:03:01.7]} 3. Nc3 {[%clk 0:03:03.2]} 3... Bg7 {[%clk 0:03:03.2]}
4. e4 {[%clk 0:03:03.7]} 4... d6 {[%clk 0:03:04.1]} 5. Bg5 {[%clk 0:03:03.3]}
5... a6 {[%clk 0:03:03.5]} 6. Bd3 {[%clk 0:03:02.4]} 6... O-O {[%clk 0:03:02.7]}
7. Qe2 {[%clk 0:03:02.4]} 7... b5 {[%clk 0:03:03.4]} 8. e5 {[%clk 0:03:02.6]}
8... dxe5 {[%clk 0:03:04.6]} 9. dxe5 {[%clk 0:03:03.8]} 9... Nd5 {[%clk
0:03:04.6]} 10. Nxd5 {[%clk 0:03:04.3]} 10... Qxd5 {[%clk 0:03:01.3]} 11. Be4
{[%clk 0:03:05.5]} 11... Qc5 {[%clk 0:02:59.2]} 12. Bxa8 {[%clk 0:03:06.6]}
12... c6 {[%clk 0:03:00.8]} 13. Be3 {[%clk 0:03:03.9]} 13... Qb4+ {[%clk
0:03:00.5]} 14. c3 {[%clk 0:03:04.9]} 14... Qa5 {[%clk 0:03:01.7]} 15. O-O
{[%clk 0:03:03]} 15... Qc7 {[%clk 0:03:02.8]} 16. a4 {[%clk 0:03:01.3]} 16...
Nd7 {[%clk 0:02:58]} 17. axb5 {[%clk 0:03:01.9]} 17... cxb5 {[%clk 0:02:59.4]}
18. Be4 {[%clk 0:03:02.1]} 18... Nxe5 {[%clk 0:03:00.5]} 19. Nxe5 {[%clk
0:03:00.6]} 19... Bxe5 {[%clk 0:03:01.8]} 20. g3 {[%clk 0:03:01.4]} 20... f5
{[%clk 0:02:59.6]} 21. Bg2 {[%clk 0:03:02.2]} 21... Bf6 {[%clk 0:02:58.9]} 22.
Rfd1 {[%clk 0:02:55.7]} 22... e5 {[%clk 0:02:59.7]} 23. c4 {[%clk 0:02:54.9]}
23... f4 {[%clk 0:03:00.9]} 24. Bd2 {[%clk 0:02:47.1]} 24... bxc4 {[%clk
0:02:55.3]} 25. Bc3 {[%clk 0:02:46.9]} 25... h5 {[%clk 0:02:49.7]} 26. Bd5+
{[%clk 0:02:44]} 26... Kg7 {[%clk 0:02:49.5]} 27. Qxc4 {[%clk 0:02:44.7]} 27...
Qa7 {[%clk 0:02:50.7]} 28. gxf4 {[%clk 0:02:34]} 28... Bg4 {[%clk 0:02:50.4]}
29. Rd2 {[%clk 0:02:35.2]} 29... Kh6 {[%clk 0:02:47.9]} 30. Rxa6 {[%clk
0:02:28.6]} 30... Qe7 {[%clk 0:02:48.3]} 31. Rxf6 {[%clk 0:02:15.2]} 31... Qxf6
{[%clk 0:02:48.7]} 32. Bxe5 {[%clk 0:02:15.5]} 32... Qe7 {[%clk 0:02:45.2]} 33.
Qc7 {[%clk 0:02:09.9]} 33... Qxc7 {[%clk 0:02:39.3]} 34. Bxc7 {[%clk 0:02:10.9]}
34... Rc8 {[%clk 0:02:40.7]} 35. Rc2 {[%clk 0:02:06]} 35... Bf5 {[%clk
0:02:40.5]} 36. Rc3 {[%clk 0:02:04.7]} 36... h4 {[%clk 0:02:41.7]} 37. f3 {[%clk
0:02:03.9]} 37... h3 {[%clk 0:02:42.3]} 38. Kf2 {[%clk 0:02:05]} 38... Re8
{[%clk 0:02:41.2]} 39. b4 {[%clk 0:02:05.2]} 39... Bd7 {[%clk 0:02:41.5]} 40.
Be5 {[%clk 0:02:04.4]} 40... g5 {[%clk 0:02:38.7]} 41. Rc7 {[%clk 0:02:01.7]}
41... Bf5 {[%clk 0:02:39.2]} 42. Rc6+ {[%clk 0:02:01.5]} 42... Kh7 {[%clk
0:02:38.7]} 43. Kg3 {[%clk 0:01:55.3]} 43... gxf4+ {[%clk 0:02:39.7]} 44. Kxf4
{[%clk 0:01:56.4]} 44... Bd7 {[%clk 0:02:38.9]} 45. Rc7 {[%clk 0:01:55.6]} 45...
Rf8+ {[%clk 0:02:39.3]} 46. Ke3 {[%clk 0:01:55.8]} 46... Rd8 {[%clk 0:02:38.1]}
47. Bc6 {[%clk 0:01:53.7]} 47... Kg6 {[%clk 0:02:40]} 48. Rxd7 {[%clk
0:01:54.5]} 48... Re8 {[%clk 0:02:40.7]} 49. Rd6+ {[%clk 0:01:55.4]} 49... Kf5
{[%clk 0:02:41.4]} 50. Bxe8 {[%clk 0:01:56.4]} 1-0

[Event "*** Titled Tuesday 3|2 Blitz"]
[Site "Chess.com"]
[Date "2016.03.01"]
[Round "6"]
[White "Mischuk_D"]
[Black "Lupul_Cenusiu"]
[Result "1-0"]
[WhiteElo "2538"]
[BlackElo "2471"]
[TimeControl "180+2"]
[EndTime "12:43:14 PST"]
[Termination "Mischuk_D won by resignation"]

1. e4 {[%clk 0:03:01.9]} 1... c5 {[%clk 0:03:00.3]} 2. Nf3 {[%clk 0:03:02.8]}
2... e6 {[%clk 0:03:01.5]} 3. b3 {[%clk 0:03:01.6]} 3... Nf6 {[%clk 0:03:00.3]}
4. e5 {[%clk 0:03:01.9]} 4... Nd5 {[%clk 0:03:01.1]} 5. Bb2 {[%clk 0:03:00.6]}
5... Nc6 {[%clk 0:03:01.4]} 6. c4 {[%clk 0:03:01.1]} 6... Nc7 {[%clk 0:03:00.9]}
7. Be2 {[%clk 0:02:56.6]} 7... Be7 {[%clk 0:02:58.8]} 8. O-O {[%clk 0:02:57.4]}
8... O-O {[%clk 0:02:58.4]} 9. d4 {[%clk 0:02:55.8]} 9... cxd4 {[%clk
0:02:59.1]} 10. Nxd4 {[%clk 0:02:56.8]} 10... Nxe5 {[%clk 0:02:58.3]} 11. Nxe6
{[%clk 0:02:56.8]} 11... dxe6 {[%clk 0:02:50.1]} 12. Bxe5 {[%clk 0:02:57.5]}
12... Bd7 {[%clk 0:02:35.2]} 13. Bf3 {[%clk 0:02:54]} 13... Qc8 {[%clk
0:02:35.6]} 14. Nc3 {[%clk 0:02:54.4]} 14... Bc6 {[%clk 0:02:31.1]} 15. Bxc6
{[%clk 0:02:53.9]} 15... bxc6 {[%clk 0:02:32.3]} 16. Qg4 {[%clk 0:02:52.6]}
16... f6 {[%clk 0:02:32.5]} 17. Bxc7 {[%clk 0:02:53.5]} 17... Qxc7 {[%clk
0:02:31.4]} 18. Qxe6+ {[%clk 0:02:54.4]} 18... Kh8 {[%clk 0:02:33]} 19. Rad1
{[%clk 0:02:55]} 19... Rad8 {[%clk 0:02:27.6]} 20. g3 {[%clk 0:02:54.1]} 20...
Bb4 {[%clk 0:02:27.5]} 21. Rxd8 {[%clk 0:02:48.8]} 21... Qxd8 {[%clk 0:02:25.2]}
22. Nd1 {[%clk 0:02:46.8]} 22... c5 {[%clk 0:02:24.2]} 23. Ne3 {[%clk 0:02:47]}
23... Re8 {[%clk 0:02:25.4]} 24. Qg4 {[%clk 0:02:45]} 24... Bc3 {[%clk
0:02:24.5]} 25. Nd5 {[%clk 0:02:45.1]} 25... Bd4 {[%clk 0:02:25]} 26. h4 {[%clk
0:02:44.4]} 26... Re5 {[%clk 0:02:11.9]} 27. Kg2 {[%clk 0:02:43.6]} 27... Qe8
{[%clk 0:02:11.6]} 28. Qf3 {[%clk 0:02:43.1]} 28... h5 {[%clk 0:02:08.4]} 29.
Nf4 {[%clk 0:02:43.5]} 29... Kh7 {[%clk 0:02:04.6]} 30. Qd3+ {[%clk 0:02:42.9]}
30... g6 {[%clk 0:02:04.5]} 31. Rd1 {[%clk 0:02:39.1]} 31... Qc6+ {[%clk
0:01:57.9]} 32. Qf3 {[%clk 0:02:39.6]} 32... Qxf3+ {[%clk 0:01:57.1]} 33. Kxf3
{[%clk 0:02:40.3]} 33... Rf5 {[%clk 0:01:55.5]} 34. Kg2 {[%clk 0:02:37]} 34...
a5 {[%clk 0:01:47.7]} 35. Re1 {[%clk 0:02:36.9]} 35... Kh6 {[%clk 0:01:38.2]}
36. Re6 {[%clk 0:02:35.4]} 36... g5 {[%clk 0:01:31.1]} 37. hxg5+ {[%clk
0:02:36.3]} 37... Rxg5 {[%clk 0:01:29.4]} 38. Kf3 {[%clk 0:02:32.2]} 38... h4
{[%clk 0:01:25.7]} 39. gxh4 {[%clk 0:02:31.5]} 39... Rg8 {[%clk 0:01:26.5]} 40.
Ra6 {[%clk 0:02:28.7]} 40... Rg1 {[%clk 0:01:20.4]} 41. Rxa5 {[%clk 0:02:23.3]}
41... Ra1 {[%clk 0:01:21.1]} 42. Ne6 {[%clk 0:02:23.1]} 42... Kh5 {[%clk
0:01:18.9]} 43. Nxd4 {[%clk 0:02:23.8]} 1-0

[Event "*** Titled Tuesday 3|2 Blitz"]
[Site "Chess.com"]
[Date "2016.03.01"]
[Round "6"]
[White "Journey_to_GrandMaster_YT"]
[Black "Jahonas"]
[Result "0-1"]
[WhiteElo "2249"]
[BlackElo "2190"]
[TimeControl "180+2"]
[EndTime "12:43:16 PST"]
[Termination "Jahonas won by checkmate"]

1. d4 {[%clk 0:03:01.9]} 1... Nf6 {[%clk 0:03:00.1]} 2. c4 {[%clk 0:03:02.9]}
2... g6 {[%clk 0:03:00.6]} 3. Nc3 {[%clk 0:03:03.8]} 3... Bg7 {[%clk 0:03:01.6]}
4. e4 {[%clk 0:03:04.9]} 4... O-O {[%clk 0:03:02.2]} 5. Nf3 {[%clk 0:03:06.2]}
5... d6 {[%clk 0:03:01.6]} 6. Be2 {[%clk 0:03:06.9]} 6... Nc6 {[%clk 0:03:02.8]}
7. O-O {[%clk 0:03:07.7]} 7... e5 {[%clk 0:03:03.8]} 8. d5 {[%clk 0:03:09.4]}
8... Nd4 {[%clk 0:03:03.4]} 9. Ne1 {[%clk 0:03:11.3]} 9... c5 {[%clk 0:03:01.5]}
10. dxc6 {[%clk 0:03:11.3]} 10... bxc6 {[%clk 0:03:01.7]} 11. Be3 {[%clk
0:03:09.1]} 11... c5 {[%clk 0:03:02.8]} 12. Nd3 {[%clk 0:03:04.9]} 12... Bb7
{[%clk 0:03:03.3]} 13. f3 {[%clk 0:03:05.6]} 13... Nh5 {[%clk 0:02:56.6]} 14.
Nd5 {[%clk 0:03:05.3]} 14... Bxd5 {[%clk 0:02:52.5]} 15. cxd5 {[%clk 0:03:05.2]}
15... Rb8 {[%clk 0:02:47.1]} 16. b4 {[%clk 0:03:04.2]} 16... cxb4 {[%clk
0:02:44.6]} 17. Bxd4 {[%clk 0:02:53.1]} 17... exd4 {[%clk 0:02:42.6]} 18. Qa4
{[%clk 0:02:52.4]} 18... Qb6 {[%clk 0:02:41.2]} 19. Rfb1 {[%clk 0:02:51.3]}
19... a5 {[%clk 0:02:40.3]} 20. a3 {[%clk 0:02:51.6]} 20... Nf4 {[%clk
0:02:35.1]} 21. Kf1 {[%clk 0:02:45]} 21... Nxd3 {[%clk 0:02:29.7]} 22. Bxd3
{[%clk 0:02:45.1]} 22... Rfc8 {[%clk 0:02:30.4]} 23. axb4 {[%clk 0:02:28.6]}
23... axb4 {[%clk 0:02:32.3]} 24. Rb3 {[%clk 0:02:10.6]} 24... Rc3 {[%clk
0:02:29.7]} 25. Rab1 {[%clk 0:02:10.2]} 25... Qc5 {[%clk 0:02:08.5]} 26. Ke2
{[%clk 0:02:00.2]} 26... Rxb3 {[%clk 0:01:49.7]} 27. Rxb3 {[%clk 0:01:58.4]}
27... Qc1 {[%clk 0:01:46.3]} 28. Qa7 {[%clk 0:01:49.8]} 28... Qe3+ {[%clk
0:01:44.3]} 29. Kf1 {[%clk 0:01:49.7]} 29... Rc8 {[%clk 0:01:42.1]} 30. g3
{[%clk 0:01:13.7]} 30... Qxf3+ {[%clk 0:01:38.5]} 31. Ke1 {[%clk 0:01:12.3]}
31... Rc1+ {[%clk 0:01:34]} 32. Kd2 {[%clk 0:01:11.5]} 32... Qe3# {[%clk
0:01:32.1]} 0-1

[Event "*** Titled Tuesday 3|2 Blitz"]
[Site "Chess.com"]
[Date "2016.03.01"]
[Round "6"]
[White "Tirantes"]
[Black "FrankieJay"]
[Result "1-0"]
[WhiteElo "2207"]
[BlackElo "2186"]
[TimeControl "180+2"]
[EndTime "12:44:27 PST"]
[Termination "Tirantes won by resignation"]

1. c4 {[%clk 0:03:01.9]} 1... Nf6 {[%clk 0:03:00.6]} 2. Nc3 {[%clk 0:03:01.4]}
2... g6 {[%clk 0:03:01.9]} 3. g3 {[%clk 0:03:01.4]} 3... Bg7 {[%clk 0:03:03.2]}
4. Bg2 {[%clk 0:03:02.1]} 4... O-O {[%clk 0:03:04.8]} 5. e4 {[%clk 0:03:02.4]}
5... c5 {[%clk 0:03:05.3]} 6. Nge2 {[%clk 0:03:02]} 6... Nc6 {[%clk 0:03:05.7]}
7. O-O {[%clk 0:03:00.9]} 7... d6 {[%clk 0:03:07]} 8. d3 {[%clk 0:03:01.8]} 8...
Ne8 {[%clk 0:03:07]} 9. Be3 {[%clk 0:03:01.3]} 9... Nc7 {[%clk 0:03:06.2]} 10.
d4 {[%clk 0:03:01.6]} 10... cxd4 {[%clk 0:03:06.6]} 11. Nxd4 {[%clk 0:03:02.4]}
11... Bd7 {[%clk 0:03:01.7]} 12. Rc1 {[%clk 0:02:58.4]} 12... Ne6 {[%clk
0:02:59.5]} 13. Nde2 {[%clk 0:02:57.7]} 13... Rc8 {[%clk 0:02:50.1]} 14. b3
{[%clk 0:02:57]} 14... Nc5 {[%clk 0:02:39.2]} 15. Qd2 {[%clk 0:02:51.9]} 15...
Ne5 {[%clk 0:02:30.7]} 16. Bh6 {[%clk 0:02:43]} 16... Bh3 {[%clk 0:02:06.3]} 17.
Bxg7 {[%clk 0:02:41.7]} 17... Kxg7 {[%clk 0:02:07.4]} 18. f3 {[%clk 0:02:29.7]}
18... Qd7 {[%clk 0:01:58]} 19. Nd4 {[%clk 0:02:19]} 19... Bxg2 {[%clk
0:01:57.9]} 20. Kxg2 {[%clk 0:02:16.7]} 20... a6 {[%clk 0:01:58]} 21. f4 {[%clk
0:02:02.1]} 21... Ned3 {[%clk 0:01:38.8]} 22. Rcd1 {[%clk 0:02:01.2]} 22... e5
{[%clk 0:01:40]} 23. Nde2 {[%clk 0:01:44.6]} 23... exf4 {[%clk 0:01:18.6]} 24.
Nxf4 {[%clk 0:01:44.3]} 24... Nxf4+ {[%clk 0:01:07.9]} 25. Qxf4 {[%clk
0:01:44.2]} 25... Rcd8 {[%clk 0:00:47.6]} 26. Qf6+ {[%clk 0:01:44]} 26... Kg8
{[%clk 0:00:48.9]} 27. Nd5 {[%clk 0:01:43.7]} 27... Rfe8 {[%clk 0:00:49.2]} 28.
Qh4 {[%clk 0:01:30.6]} 28... Nxe4 {[%clk 0:00:32.8]} 29. Rde1 {[%clk 0:01:31.1]}
29... g5 {[%clk 0:00:26.4]} 30. Qh5 {[%clk 0:01:14.2]} 30... Kh8 {[%clk
0:00:19.9]} 31. Rxf7 {[%clk 0:01:07.2]} 1-0

[Event "*** Titled Tuesday 3|2 Blitz"]
[Site "Chess.com"]
[Date "2016.03.01"]
[Round "6"]
[White "D-Prawira"]
[Black "bugsbunny444"]
[Result "0-1"]
[WhiteElo "2210"]
[BlackElo "2428"]
[TimeControl "180+2"]
[EndTime "12:44:36 PST"]
[Termination "bugsbunny444 won by checkmate"]

1. Nf3 {[%clk 0:03:01.9]} 1... d5 {[%clk 0:02:59.5]} 2. g3 {[%clk 0:03:02.5]}
2... Nc6 {[%clk 0:03:00.2]} 3. d4 {[%clk 0:03:00.8]} 3... Bf5 {[%clk 0:03:00.7]}
4. Bg2 {[%clk 0:03:01.2]} 4... Nb4 {[%clk 0:03:01.5]} 5. Na3 {[%clk 0:02:59.8]}
5... e6 {[%clk 0:03:02.1]} 6. Bd2 {[%clk 0:02:55.9]} 6... Nf6 {[%clk 0:02:58.3]}
7. c3 {[%clk 0:02:55.9]} 7... Nc6 {[%clk 0:02:58.8]} 8. Nc2 {[%clk 0:02:56.9]}
8... Be7 {[%clk 0:02:51.5]} 9. O-O {[%clk 0:02:56.3]} 9... Be4 {[%clk
0:02:52.2]} 10. Nce1 {[%clk 0:02:41.1]} 10... O-O {[%clk 0:02:51.1]} 11. Nd3
{[%clk 0:02:41.8]} 11... Nd7 {[%clk 0:02:43.1]} 12. Bh3 {[%clk 0:02:30.7]} 12...
Bd6 {[%clk 0:02:11.4]} 13. Nfe1 {[%clk 0:02:27.3]} 13... e5 {[%clk 0:02:06]} 14.
f3 {[%clk 0:02:26.6]} 14... Bxd3 {[%clk 0:02:00.3]} 15. Nxd3 {[%clk 0:02:24.5]}
15... exd4 {[%clk 0:02:01.5]} 16. Nf4 {[%clk 0:02:17.8]} 16... dxc3 {[%clk
0:01:58.2]} 17. bxc3 {[%clk 0:02:17.8]} 17... Nb6 {[%clk 0:01:54.7]} 18. Bc1
{[%clk 0:02:08.5]} 18... Re8 {[%clk 0:01:48.4]} 19. a4 {[%clk 0:01:47.1]} 19...
a5 {[%clk 0:01:46.7]} 20. Bf5 {[%clk 0:01:39.5]} 20... Qf6 {[%clk 0:01:38.3]}
21. Bd3 {[%clk 0:01:33.8]} 21... Qxc3 {[%clk 0:01:32.6]} 22. Bd2 {[%clk
0:01:31.4]} 22... Qd4+ {[%clk 0:01:24.8]} 23. Kg2 {[%clk 0:01:22.1]} 23... Nb4
{[%clk 0:01:24.2]} 24. Bxb4 {[%clk 0:01:04.6]} 24... Qxb4 {[%clk 0:01:24.9]} 25.
Bc2 {[%clk 0:00:59.4]} 25... Bxf4 {[%clk 0:01:18.8]} 26. gxf4 {[%clk 0:00:58.8]}
26... Qxf4 {[%clk 0:01:19.6]} 27. Qd3 {[%clk 0:00:57.5]} 27... g6 {[%clk
0:01:16.6]} 28. Kh1 {[%clk 0:00:52.9]} 28... Re3 {[%clk 0:01:15.5]} 29. Qd1
{[%clk 0:00:51.3]} 29... Rae8 {[%clk 0:01:14.1]} 30. Bd3 {[%clk 0:00:51.6]}
30... R3e5 {[%clk 0:01:04.1]} 31. Rf2 {[%clk 0:00:48.3]} 31... Rh5 {[%clk
0:00:58.1]} 32. Rg2 {[%clk 0:00:47.5]} 32... Ree5 {[%clk 0:00:56]} 33. Rc1
{[%clk 0:00:42.8]} 33... Reg5 {[%clk 0:00:56.1]} 34. Rxg5 {[%clk 0:00:36.3]}
34... Qxh2# {[%clk 0:00:56.6]} 0-1